[Event "*** Titled Tuesday Blitz"]
[Site "Chess.com"]
[Date "2020.11.24"]
[Round "7"]
[White "anemih"]
[Black "ambaixador"]
[Result "0-1"]
[WhiteElo "2329"]
[BlackElo "2438"]
[TimeControl "180+1"]
[EndTime "11:35:06 PST"]
[Termination "ambaixador won by resignation"]

1. e4 {[%clk 0:03:00.9]} 1... c5 {[%clk 0:02:58.1]} 2. c3 {[%clk 0:03:00.8]}
2... d5 {[%clk 0:02:56.6]} 3. exd5 {[%clk 0:03:00.9]} 3... Qxd5 {[%clk
0:02:57.5]} 4. d4 {[%clk 0:03:01.1]} 4... Nf6 {[%clk 0:02:57.6]} 5. Nf3 {[%clk
0:03:01.4]} 5... Nc6 {[%clk 0:02:56.7]} 6. dxc5 {[%clk 0:02:56.1]} 6... Qxc5
{[%clk 0:02:54.5]} 7. Na3 {[%clk 0:02:56]} 7... Qb6 {[%clk 0:02:25.5]} 8. Nb5
{[%clk 0:02:51.8]} 8... e6 {[%clk 0:01:48.5]} 9. Be3 {[%clk 0:02:49]} 9... Qa5
{[%clk 0:01:48.6]} 10. Nd6+ {[%clk 0:02:39.4]} 10... Bxd6 {[%clk 0:01:47.3]} 11.
Qxd6 {[%clk 0:02:39.4]} 11... Qd5 {[%clk 0:01:38.9]} 12. Qxd5 {[%clk 0:02:26.7]}
12... Nxd5 {[%clk 0:01:39.8]} 13. Nd4 {[%clk 0:02:25.2]} 13... Bd7 {[%clk
0:01:34.5]} 14. g3 {[%clk 0:02:16.3]} 14... Nxe3 {[%clk 0:01:31.4]} 15. fxe3
{[%clk 0:02:17.2]} 15... Ne5 {[%clk 0:01:25.1]} 16. Bg2 {[%clk 0:02:10.8]} 16...
O-O-O {[%clk 0:01:16.9]} 17. O-O-O {[%clk 0:02:02.8]} 17... a6 {[%clk
0:01:14.5]} 18. h3 {[%clk 0:01:57.7]} 18... Kc7 {[%clk 0:01:12.8]} 19. b3 {[%clk
0:01:54.6]} 19... Bc6 {[%clk 0:00:55.6]} 20. Bxc6 {[%clk 0:01:48]} 20... bxc6
{[%clk 0:00:56.5]} 21. Rhf1 {[%clk 0:01:45.5]} 21... c5 {[%clk 0:00:49.5]} 22.
Nf3 {[%clk 0:01:42.9]} 22... Rxd1+ {[%clk 0:00:37]} 23. Kxd1 {[%clk 0:01:43.8]}
23... Nxf3 {[%clk 0:00:32.9]} 24. Rxf3 {[%clk 0:01:43.2]} 24... f5 {[%clk
0:00:33.8]} 25. e4 {[%clk 0:01:35.8]} 25... g6 {[%clk 0:00:32.8]} 26. exf5
{[%clk 0:01:32.3]} 26... gxf5 {[%clk 0:00:30.5]} 27. g4 {[%clk 0:01:27.2]} 27...
Rf8 {[%clk 0:00:27.4]} 28. Kd2 {[%clk 0:01:22.2]} 28... Kd6 {[%clk 0:00:24]} 29.
b4 {[%clk 0:01:19.4]} 29... cxb4 {[%clk 0:00:23.5]} 30. cxb4 {[%clk 0:01:19.3]}
30... Ke5 {[%clk 0:00:24.4]} 31. Ra3 {[%clk 0:01:12.6]} 31... f4 {[%clk
0:00:23.8]} 32. Ke2 {[%clk 0:01:07.8]} 32... Ke4 {[%clk 0:00:23.3]} 33. Rxa6
{[%clk 0:01:06.9]} 33... f3+ {[%clk 0:00:23.2]} 34. Kf2 {[%clk 0:01:06.8]} 34...
e5 {[%clk 0:00:23.8]} 35. b5 {[%clk 0:01:06.9]} 35... Kf4 {[%clk 0:00:23.6]} 36.
b6 {[%clk 0:01:04]} 36... e4 {[%clk 0:00:23.7]} 37. b7 {[%clk 0:01:01.1]} 37...
e3+ {[%clk 0:00:22.8]} 38. Kf1 {[%clk 0:01:01.3]} 38... Rb8 {[%clk 0:00:22.2]}
39. Rb6 {[%clk 0:00:59.4]} 39... Kg3 {[%clk 0:00:22.4]} 40. Rb1 {[%clk
0:00:27.1]} 40... e2+ {[%clk 0:00:18.7]} 41. Ke1 {[%clk 0:00:27]} 41... Kg2
{[%clk 0:00:18.3]} 42. a4 {[%clk 0:00:26.6]} 42... Re8 {[%clk 0:00:12.6]} 43. a5
{[%clk 0:00:23.7]} 43... f2+ {[%clk 0:00:13.1]} 44. Kd2 {[%clk 0:00:23.4]} 44...
e1=Q+ {[%clk 0:00:12.8]} 45. Kc2 {[%clk 0:00:23.2]} 45... Qe4+ {[%clk
0:00:11.3]} 46. Kb2 {[%clk 0:00:22.2]} 46... Qxb7+ {[%clk 0:00:10.3]} 0-1

[Event "*** Titled Tuesday Blitz"]
[Site "Chess.com"]
[Date "2020.11.24"]
[Round "7"]
[White "poneis_malditos"]
[Black "JRenatoMaranhao"]
[Result "1-0"]
[WhiteElo "2300"]
[BlackElo "1899"]
[TimeControl "180+1"]
[EndTime "11:35:06 PST"]
[Termination "poneis_malditos won by resignation"]

1. e4 {[%clk 0:03:00]} 1... c5 {[%clk 0:02:58.6]} 2. Nc3 {[%clk 0:02:59.7]} 2...
Nc6 {[%clk 0:02:59]} 3. g3 {[%clk 0:02:59.6]} 3... g6 {[%clk 0:02:58.1]} 4. Bg2
{[%clk 0:03:00.2]} 4... Bg7 {[%clk 0:02:58.5]} 5. d3 {[%clk 0:03:00.9]} 5... Nf6
{[%clk 0:02:58.5]} 6. f4 {[%clk 0:03:00.4]} 6... O-O {[%clk 0:02:58.9]} 7. Nf3
{[%clk 0:03:00.3]} 7... d5 {[%clk 0:02:58.8]} 8. e5 {[%clk 0:03:00.3]} 8... Ng4
{[%clk 0:02:58.3]} 9. h3 {[%clk 0:03:00]} 9... d4 {[%clk 0:02:57.2]} 10. hxg4
{[%clk 0:02:39.6]} 10... dxc3 {[%clk 0:02:56.9]} 11. Ng5 {[%clk 0:02:31]} 11...
h6 {[%clk 0:02:55.3]} 12. Ne4 {[%clk 0:02:30.8]} 12... cxb2 {[%clk 0:02:53.3]}
13. Bxb2 {[%clk 0:02:31.7]} 13... Nd4 {[%clk 0:02:50.9]} 14. g5 {[%clk
0:02:27.2]} 14... h5 {[%clk 0:02:50.5]} 15. O-O {[%clk 0:02:14.4]} 15... Bg4
{[%clk 0:02:49.3]} 16. Qd2 {[%clk 0:02:12.8]} 16... Qb6 {[%clk 0:02:49.5]} 17.
Rab1 {[%clk 0:02:05.1]} 17... c4 {[%clk 0:02:45]} 18. Kh2 {[%clk 0:01:54.5]}
18... cxd3 {[%clk 0:02:36.3]} 19. Qxd3 {[%clk 0:01:51.7]} 19... Rfd8 {[%clk
0:02:09.6]} 20. Bxd4 {[%clk 0:01:50.6]} 20... Qxd4 {[%clk 0:02:07.1]} 21. Qxd4
{[%clk 0:01:50.3]} 21... Rxd4 {[%clk 0:02:08]} 22. Rxb7 {[%clk 0:01:50.8]} 22...
Rc8 {[%clk 0:02:04.3]} 23. c3 {[%clk 0:01:50.8]} 23... Ra4 {[%clk 0:01:57.4]}
24. Rf2 {[%clk 0:01:49.4]} 24... Bf5 {[%clk 0:01:44.4]} 25. Rb4 {[%clk
0:01:47.8]} 25... Rxb4 {[%clk 0:01:29.7]} 26. cxb4 {[%clk 0:01:48.7]} 26... Rc4
{[%clk 0:01:27.9]} 27. Nc5 {[%clk 0:01:34]} 27... Rxb4 {[%clk 0:01:23.3]} 28.
Rd2 {[%clk 0:01:33.2]} 28... f6 {[%clk 0:00:48.4]} 29. gxf6 {[%clk 0:01:27.7]}
29... exf6 {[%clk 0:00:47.2]} 30. Bd5+ {[%clk 0:01:25.9]} 30... Kh7 {[%clk
0:00:45.5]} 31. e6 {[%clk 0:01:25.9]} 31... Bf8 {[%clk 0:00:33.2]} 32. Nd7
{[%clk 0:01:22.5]} 32... Be7 {[%clk 0:00:29.5]} 33. Bb3 {[%clk 0:01:23]} 33...
a5 {[%clk 0:00:24.6]} 34. Bd5 {[%clk 0:00:55.5]} 34... h4 {[%clk 0:00:23]} 35.
Re2 {[%clk 0:00:32.2]} 35... a4 {[%clk 0:00:18.9]} 36. a3 {[%clk 0:00:22.5]}
36... hxg3+ {[%clk 0:00:16.7]} 37. Kxg3 {[%clk 0:00:22.1]} 37... Rd4 {[%clk
0:00:16.7]} 38. Ba2 {[%clk 0:00:20.8]} 38... Rd3+ {[%clk 0:00:16]} 39. Kg2
{[%clk 0:00:20.5]} 39... Rxa3 {[%clk 0:00:16.1]} 40. Nb6 {[%clk 0:00:19]} 40...
Rc3 {[%clk 0:00:11.7]} 41. Nd5 {[%clk 0:00:18.6]} 41... Bd6 {[%clk 0:00:06.7]}
42. Nxc3 {[%clk 0:00:18.2]} 1-0

[Event "*** Titled Tuesday Blitz"]
[Site "Chess.com"]
[Date "2020.11.24"]
[Round "7"]
[White "Guachiney"]
[Black "sasko1234"]
[Result "1-0"]
[WhiteElo "2771"]
[BlackElo "2479"]
[TimeControl "180+1"]
[EndTime "11:35:07 PST"]
[Termination "Guachiney won on time"]

1. e4 {[%clk 0:03:00.9]} 1... c6 {[%clk 0:02:26.2]} 2. d4 {[%clk 0:03:00.4]}
2... Na6 {[%clk 0:02:24.4]} 3. Nc3 {[%clk 0:02:57.8]} 3... Nc7 {[%clk
0:02:23.9]} 4. Be3 {[%clk 0:02:57.5]} 4... d5 {[%clk 0:02:24]} 5. f3 {[%clk
0:02:57.9]} 5... g6 {[%clk 0:02:23.6]} 6. Qd2 {[%clk 0:02:57]} 6... h5 {[%clk
0:02:22.8]} 7. O-O-O {[%clk 0:02:54.5]} 7... Bg7 {[%clk 0:02:21.6]} 8. Kb1
{[%clk 0:02:53.2]} 8... Nf6 {[%clk 0:02:20.3]} 9. e5 {[%clk 0:02:51.2]} 9... Nd7
{[%clk 0:02:19.9]} 10. f4 {[%clk 0:02:51.3]} 10... b5 {[%clk 0:02:19.1]} 11. Nf3
{[%clk 0:02:49.5]} 11... Nb6 {[%clk 0:02:19.1]} 12. h3 {[%clk 0:02:39]} 12...
Rb8 {[%clk 0:02:17.7]} 13. Qe1 {[%clk 0:02:36.1]} 13... Bf5 {[%clk 0:02:12.1]}
14. Nh4 {[%clk 0:02:34.9]} 14... e6 {[%clk 0:02:10.5]} 15. Nxf5 {[%clk
0:02:34.6]} 15... exf5 {[%clk 0:02:10.7]} 16. Rg1 {[%clk 0:02:22.9]} 16... Nc4
{[%clk 0:02:03.6]} 17. Bc1 {[%clk 0:02:22.5]} 17... b4 {[%clk 0:02:00.8]} 18.
Na4 {[%clk 0:02:16.9]} 18... Ne6 {[%clk 0:01:59.7]} 19. b3 {[%clk 0:02:01.6]}
19... Nb6 {[%clk 0:01:51.7]} 20. Nb2 {[%clk 0:01:49.7]} 20... a5 {[%clk
0:01:48.4]} 21. g4 {[%clk 0:01:49.1]} 21... hxg4 {[%clk 0:01:45.8]} 22. hxg4
{[%clk 0:01:50]} 22... Bf8 {[%clk 0:01:38.7]} 23. gxf5 {[%clk 0:01:46.8]} 23...
gxf5 {[%clk 0:01:38.5]} 24. Qf2 {[%clk 0:01:41.6]} 24... a4 {[%clk 0:01:25.8]}
25. Nd3 {[%clk 0:01:35.8]} 25... axb3 {[%clk 0:01:21.6]} 26. cxb3 {[%clk
0:01:36.7]} 26... Qh4 {[%clk 0:01:11.9]} 27. Qe3 {[%clk 0:01:06.2]} 27... Bh6
{[%clk 0:00:56.9]} 28. Be2 {[%clk 0:01:01.6]} 28... Qe7 {[%clk 0:00:53]} 29. Rh1
{[%clk 0:01:00.8]} 29... Kd7 {[%clk 0:00:49.9]} 30. Rh5 {[%clk 0:00:50.4]} 30...
Bg7 {[%clk 0:00:47.9]} 31. Rxf5 {[%clk 0:00:49.5]} 31... Rh2 {[%clk 0:00:43.1]}
32. Bg4 {[%clk 0:00:46.2]} 32... Ra8 {[%clk 0:00:39.6]} 33. Rd2 {[%clk
0:00:46.1]} 33... Rh1 {[%clk 0:00:29.9]} 34. Qf3 {[%clk 0:00:35.9]} 34... Rg1
{[%clk 0:00:24.6]} 35. Rg2 {[%clk 0:00:34.1]} 35... Rxg2 {[%clk 0:00:18.7]} 36.
Qxg2 {[%clk 0:00:35]} 36... Kc7 {[%clk 0:00:05.7]} 37. Be3 {[%clk 0:00:34.2]}
37... Nc4 {[%clk 0:00:04.5]} 38. bxc4 {[%clk 0:00:34]} 38... dxc4 {[%clk
0:00:04.7]} 39. Nc5 {[%clk 0:00:34.2]} 39... Nxc5 {[%clk 0:00:03.9]} 40. dxc5
{[%clk 0:00:35.1]} 40... Qd7 {[%clk 0:00:03.6]} 41. Qd2 {[%clk 0:00:33.2]} 41...
Qe8 {[%clk 0:00:01.5]} 42. Qd6+ {[%clk 0:00:32.6]} 42... Kb7 {[%clk 0:00:01.7]}
43. Bf3 {[%clk 0:00:27.8]} 43... Rd8 {[%clk 0:00:01.3]} 44. Bxc6+ {[%clk
0:00:27.3]} 44... Qxc6 {[%clk 0:00:01.4]} 45. Rxf7+ {[%clk 0:00:27.6]} 1-0

[Event "*** Titled Tuesday Blitz"]
[Site "Chess.com"]
[Date "2020.11.24"]
[Round "7"]
[White "Evgeny81"]
[Black "louis198"]
[Result "1-0"]
[WhiteElo "2724"]
[BlackElo "2543"]
[TimeControl "180+1"]
[EndTime "11:35:08 PST"]
[Termination "Evgeny81 won on time"]

1. e4 {[%clk 0:03:00.9]} 1... e6 {[%clk 0:03:00.3]} 2. d4 {[%clk 0:03:00.5]}
2... d5 {[%clk 0:03:00.8]} 3. Nc3 {[%clk 0:03:01.4]} 3... dxe4 {[%clk
0:03:00.7]} 4. Nxe4 {[%clk 0:03:01.2]} 4... Bd7 {[%clk 0:03:01.3]} 5. Nf3 {[%clk
0:03:00.9]} 5... Bc6 {[%clk 0:03:01.1]} 6. Bd3 {[%clk 0:03:01.5]} 6... Nd7
{[%clk 0:02:59.9]} 7. O-O {[%clk 0:03:01.2]} 7... Ngf6 {[%clk 0:02:59.6]} 8.
Ned2 {[%clk 0:03:01]} 8... a5 {[%clk 0:02:58.6]} 9. c4 {[%clk 0:03:01]} 9... Be7
{[%clk 0:02:55.5]} 10. b3 {[%clk 0:03:00]} 10... O-O {[%clk 0:02:55.2]} 11. Bb2
{[%clk 0:03:00.5]} 11... b6 {[%clk 0:02:54.6]} 12. Qe2 {[%clk 0:02:59.9]} 12...
Re8 {[%clk 0:02:54.6]} 13. Rad1 {[%clk 0:03:00]} 13... Qc8 {[%clk 0:02:54.3]}
14. Ne5 {[%clk 0:03:00]} 14... Bb7 {[%clk 0:02:53.4]} 15. Rfe1 {[%clk
0:02:57.9]} 15... Nf8 {[%clk 0:02:53.6]} 16. Qe3 {[%clk 0:02:51.6]} 16... c5
{[%clk 0:02:50]} 17. Qh3 {[%clk 0:02:46.8]} 17... Ng6 {[%clk 0:02:47.4]} 18.
Ndf3 {[%clk 0:02:40.5]} 18... Nf4 {[%clk 0:02:41.8]} 19. Qg3 {[%clk 0:02:39.7]}
19... N6h5 {[%clk 0:02:33.2]} 20. Qg4 {[%clk 0:02:07.3]} 20... f5 {[%clk
0:02:32.1]} 21. Qxh5 {[%clk 0:02:01.4]} 21... Nxh5 {[%clk 0:02:30.7]} 22. d5
{[%clk 0:02:02.3]} 22... exd5 {[%clk 0:02:26.5]} 23. cxd5 {[%clk 0:02:01.4]}
23... Bf6 {[%clk 0:01:28.4]} 24. d6 {[%clk 0:01:56.8]} 24... Bc6 {[%clk
0:01:14.5]} 25. Bc4+ {[%clk 0:01:52.8]} 25... Kf8 {[%clk 0:01:05.3]} 26. d7
{[%clk 0:01:52.8]} 26... Qc7 {[%clk 0:00:54.1]} 27. dxe8=Q+ {[%clk 0:01:44.1]}
27... Rxe8 {[%clk 0:00:44.6]} 28. Nxc6 {[%clk 0:01:37.1]} 28... Rxe1+ {[%clk
0:00:42]} 29. Rxe1 {[%clk 0:01:32.3]} 29... Qxc6 {[%clk 0:00:40.5]} 30. Ne5
{[%clk 0:01:27.3]} 30... Bxe5 {[%clk 0:00:31.4]} 31. Bxe5 {[%clk 0:01:28.2]}
31... Nf6 {[%clk 0:00:29]} 32. a4 {[%clk 0:01:23.1]} 32... Ne4 {[%clk
0:00:28.4]} 33. Rd1 {[%clk 0:01:13.2]} 33... Qe8 {[%clk 0:00:26.4]} 34. f4
{[%clk 0:01:07.6]} 34... Qh5 {[%clk 0:00:17.1]} 35. Rd7 {[%clk 0:01:06.1]} 35...
g6 {[%clk 0:00:14.9]} 36. Bb5 {[%clk 0:00:25.9]} 36... Qh4 {[%clk 0:00:12.6]}
37. g3 {[%clk 0:00:18.2]} 37... Nxg3 {[%clk 0:00:06.3]} 38. Bd6+ {[%clk
0:00:12.1]} 38... Kg8 {[%clk 0:00:05.5]} 39. Bc4+ {[%clk 0:00:12.4]} 39... Kh8
{[%clk 0:00:03.2]} 40. Be5+ {[%clk 0:00:13.3]} 1-0

[Event "*** Titled Tuesday Blitz"]
[Site "Chess.com"]
[Date "2020.11.24"]
[Round "7"]
[White "Nils_03"]
[Black "amatatanav"]
[Result "0-1"]
[WhiteElo "2241"]
[BlackElo "2396"]
[TimeControl "180+1"]
[EndTime "11:35:08 PST"]
[Termination "amatatanav won by resignation"]

1. d4 {[%clk 0:02:52.9]} 1... Nf6 {[%clk 0:02:58.8]} 2. c4 {[%clk 0:02:53.1]}
2... e6 {[%clk 0:02:59]} 3. Nc3 {[%clk 0:02:53.3]} 3... d5 {[%clk 0:02:59.9]} 4.
cxd5 {[%clk 0:02:53.4]} 4... exd5 {[%clk 0:03:00]} 5. Bg5 {[%clk 0:02:54]} 5...
Be7 {[%clk 0:03:00.3]} 6. e3 {[%clk 0:02:53.9]} 6... h6 {[%clk 0:03:00.8]} 7.
Bh4 {[%clk 0:02:53.5]} 7... O-O {[%clk 0:03:00.8]} 8. Bd3 {[%clk 0:02:53.2]}
8... c6 {[%clk 0:03:01.3]} 9. Qc2 {[%clk 0:02:51.4]} 9... Re8 {[%clk 0:03:01.3]}
10. Nf3 {[%clk 0:02:51.3]} 10... Ne4 {[%clk 0:02:57.8]} 11. Bxe7 {[%clk
0:02:48]} 11... Qxe7 {[%clk 0:02:57.8]} 12. O-O {[%clk 0:02:48.3]} 12... Bf5
{[%clk 0:02:57.3]} 13. Ne5 {[%clk 0:02:41.7]} 13... Nd7 {[%clk 0:02:52.7]} 14.
Bxe4 {[%clk 0:02:26.5]} 14... Bxe4 {[%clk 0:02:29.2]} 15. Nxe4 {[%clk
0:02:24.7]} 15... dxe4 {[%clk 0:02:11.3]} 16. Nxd7 {[%clk 0:02:19.7]} 16... Qxd7
{[%clk 0:02:12.2]} 17. b4 {[%clk 0:02:20.1]} 17... Re6 {[%clk 0:02:05]} 18. a4
{[%clk 0:02:19.5]} 18... Rae8 {[%clk 0:02:01.1]} 19. Rab1 {[%clk 0:02:17.4]}
19... Rg6 {[%clk 0:01:59.8]} 20. Qe2 {[%clk 0:02:09.1]} 20... Qh3 {[%clk
0:01:52.5]} 21. g3 {[%clk 0:02:09.1]} 21... Rg5 {[%clk 0:01:33.2]} 22. b5 {[%clk
0:01:59.8]} 22... Rh5 {[%clk 0:01:23.7]} 23. f4 {[%clk 0:01:59.9]} 23... exf3
{[%clk 0:01:18.5]} 24. Rxf3 {[%clk 0:01:59.9]} 24... Re6 {[%clk 0:00:48.4]} 25.
Qg2 {[%clk 0:01:49.1]} 25... Qxg2+ {[%clk 0:00:42.5]} 26. Kxg2 {[%clk 0:01:50]}
26... cxb5 {[%clk 0:00:42.5]} 27. Rxb5 {[%clk 0:01:46.8]} 27... Rxb5 {[%clk
0:00:41.8]} 28. axb5 {[%clk 0:01:47.7]} 28... g6 {[%clk 0:00:29.9]} 29. d5
{[%clk 0:01:35.7]} 29... Rb6 {[%clk 0:00:28.7]} 30. e4 {[%clk 0:01:35.7]} 30...
Rxb5 {[%clk 0:00:27.3]} 31. Rd3 {[%clk 0:01:30.4]} 31... Kf8 {[%clk 0:00:25]}
32. d6 {[%clk 0:01:24]} 32... Ke8 {[%clk 0:00:24.1]} 33. Kf3 {[%clk 0:01:20.6]}
33... Kd7 {[%clk 0:00:23.9]} 34. Kf4 {[%clk 0:01:20]} 34... f6 {[%clk
0:00:23.9]} 35. h4 {[%clk 0:01:19.3]} 35... Rb6 {[%clk 0:00:20.9]} 36. e5 {[%clk
0:01:18.5]} 36... Rb4+ {[%clk 0:00:19.6]} 37. Kf3 {[%clk 0:01:14.1]} 37... fxe5
{[%clk 0:00:19.9]} 38. Rd5 {[%clk 0:01:13.8]} 38... Rb6 {[%clk 0:00:11.4]} 39.
Ra5 {[%clk 0:01:06]} 39... Rxd6 {[%clk 0:00:12.3]} 40. Rxa7 {[%clk 0:01:06]}
40... Kc6 {[%clk 0:00:12.3]} 41. Ra8 {[%clk 0:01:04.8]} 41... b5 {[%clk
0:00:12.2]} 42. Rc8+ {[%clk 0:01:04]} 42... Kd5 {[%clk 0:00:12.2]} 43. Ke3
{[%clk 0:01:02]} 43... Rb6 {[%clk 0:00:11.7]} 44. Rd8+ {[%clk 0:01:01.4]} 44...
Kc4 {[%clk 0:00:12]} 45. Rc8+ {[%clk 0:01:00.7]} 45... Kb3 {[%clk 0:00:12.2]}
46. Re8 {[%clk 0:00:59.6]} 46... b4 {[%clk 0:00:12]} 47. Rxe5 {[%clk 0:00:59.7]}
47... Kc2 {[%clk 0:00:11.7]} 48. Rc5+ {[%clk 0:00:58.9]} 48... Kd1 {[%clk
0:00:10.9]} 49. Rd5+ {[%clk 0:00:58.3]} 49... Kc1 {[%clk 0:00:08.9]} 50. Rc5+
{[%clk 0:00:57.6]} 50... Kb1 {[%clk 0:00:08.8]} 51. Kd2 {[%clk 0:00:56]} 51...
b3 {[%clk 0:00:08.9]} 52. h5 {[%clk 0:00:52.4]} 52... gxh5 {[%clk 0:00:08.7]}
53. Rxh5 {[%clk 0:00:53.3]} 53... b2 {[%clk 0:00:08.6]} 54. Ra5 {[%clk
0:00:49.2]} 54... Rd6+ {[%clk 0:00:08.7]} 55. Kc3 {[%clk 0:00:49.1]} 55... Kc1
{[%clk 0:00:08.9]} 0-1

[Event "*** Titled Tuesday Blitz"]
[Site "Chess.com"]
[Date "2020.11.24"]
[Round "7"]
[White "Gudmundur_Kjartansson"]
[Black "machupichu10"]
[Result "0-1"]
[WhiteElo "2554"]
[BlackElo "2759"]
[TimeControl "180+1"]
[EndTime "11:35:10 PST"]
[Termination "machupichu10 won on time"]

1. d4 {[%clk 0:03:00.9]} 1... Nf6 {[%clk 0:02:59.8]} 2. c4 {[%clk 0:03:01]} 2...
e6 {[%clk 0:03:00.1]} 3. Nf3 {[%clk 0:03:01.6]} 3... d5 {[%clk 0:02:59.7]} 4.
Nc3 {[%clk 0:03:01.1]} 4... Bb4 {[%clk 0:02:59.8]} 5. Qa4+ {[%clk 0:02:58.7]}
5... Nc6 {[%clk 0:02:57.2]} 6. Bg5 {[%clk 0:02:58.3]} 6... h6 {[%clk 0:02:39.6]}
7. Bxf6 {[%clk 0:02:56.6]} 7... Qxf6 {[%clk 0:02:39.7]} 8. e3 {[%clk 0:02:52]}
8... O-O {[%clk 0:02:39.3]} 9. cxd5 {[%clk 0:02:44.3]} 9... exd5 {[%clk
0:02:38.8]} 10. Be2 {[%clk 0:02:39.9]} 10... Qg6 {[%clk 0:01:35.9]} 11. O-O
{[%clk 0:02:38.3]} 11... Bh3 {[%clk 0:01:36]} 12. Ne1 {[%clk 0:02:36.5]} 12...
Rfe8 {[%clk 0:01:24.5]} 13. Nxd5 {[%clk 0:02:16.2]} 13... Bd6 {[%clk 0:01:03.5]}
14. Bf3 {[%clk 0:01:59.2]} 14... Qg5 {[%clk 0:00:48]} 15. Rc1 {[%clk 0:01:40.9]}
15... Re6 {[%clk 0:00:46.2]} 16. Nf4 {[%clk 0:01:28.1]} 16... Bxf4 {[%clk
0:00:35.8]} 17. exf4 {[%clk 0:01:27.6]} 17... Qxf4 {[%clk 0:00:36.7]} 18. Rd1
{[%clk 0:00:56.6]} 18... Rg6 {[%clk 0:00:32.2]} 19. g3 {[%clk 0:00:48.2]} 19...
Bxf1 {[%clk 0:00:30.1]} 20. Kxf1 {[%clk 0:00:46.5]} 20... Qd6 {[%clk 0:00:29.9]}
21. Nc2 {[%clk 0:00:42.8]} 21... Rd8 {[%clk 0:00:30.1]} 22. Bg2 {[%clk
0:00:39.8]} 22... a6 {[%clk 0:00:27]} 23. h4 {[%clk 0:00:37.9]} 23... Rg4 {[%clk
0:00:25.5]} 24. Qb3 {[%clk 0:00:33]} 24... Nxd4 {[%clk 0:00:23.3]} 25. Nxd4
{[%clk 0:00:31.8]} 25... Rxd4 {[%clk 0:00:23]} 26. Rxd4 {[%clk 0:00:18.7]} 26...
Qxd4 {[%clk 0:00:23.9]} 27. Bxb7 {[%clk 0:00:18.5]} 27... Rb8 {[%clk 0:00:21]}
28. Qf3 {[%clk 0:00:12.9]} 28... Qxb2 {[%clk 0:00:20.5]} 29. Bd5 {[%clk
0:00:12.3]} 29... Qf6 {[%clk 0:00:21.2]} 30. Qe3 {[%clk 0:00:08.7]} 30... Qd6
{[%clk 0:00:16.4]} 31. Bb3 {[%clk 0:00:07.2]} 31... Rd8 {[%clk 0:00:15.5]} 32.
Kg2 {[%clk 0:00:06.4]} 32... Qc6+ {[%clk 0:00:15.5]} 33. Kh2 {[%clk 0:00:06.7]}
33... Qf6 {[%clk 0:00:15.2]} 34. Kg2 {[%clk 0:00:06.1]} 34... h5 {[%clk
0:00:14.9]} 35. Qe2 {[%clk 0:00:05.3]} 35... g6 {[%clk 0:00:14.6]} 36. Qe3
{[%clk 0:00:05.4]} 36... Kg7 {[%clk 0:00:15.1]} 37. Qe2 {[%clk 0:00:04.6]} 37...
Qc6+ {[%clk 0:00:13.3]} 38. Kh2 {[%clk 0:00:04.3]} 38... Qc3 {[%clk 0:00:13.1]}
39. Qe4 {[%clk 0:00:03.6]} 39... Rd2 {[%clk 0:00:13.3]} 40. Qf4 {[%clk
0:00:02.1]} 40... Rd7 {[%clk 0:00:12.3]} 41. Kg2 {[%clk 0:00:01.1]} 41... c5
{[%clk 0:00:11.6]} 42. Kh2 {[%clk 0:00:01.4]} 42... Qd4 {[%clk 0:00:11.6]} 43.
Qf3 {[%clk 0:00:01.4]} 43... c4 {[%clk 0:00:11.9]} 0-1

[Event "*** Titled Tuesday Blitz"]
[Site "Chess.com"]
[Date "2020.11.24"]
[Round "7"]
[White "eCztery"]
[Black "bylavochka"]
[Result "1-0"]
[WhiteElo "2351"]
[BlackElo "2150"]
[TimeControl "180+1"]
[EndTime "11:35:13 PST"]
[Termination "eCztery won on time"]

1. e4 {[%clk 0:02:46.6]} 1... c5 {[%clk 0:02:59.1]} 2. Nf3 {[%clk 0:02:41.4]}
2... d6 {[%clk 0:02:59]} 3. d4 {[%clk 0:02:27.5]} 3... cxd4 {[%clk 0:02:59.9]}
4. Qxd4 {[%clk 0:02:26.6]} 4... Nc6 {[%clk 0:02:57.9]} 5. Bb5 {[%clk 0:02:26]}
5... Qa5+ {[%clk 0:02:57.5]} 6. Nc3 {[%clk 0:02:25.1]} 6... Bd7 {[%clk
0:02:58.1]} 7. Bxc6 {[%clk 0:02:25.1]} 7... bxc6 {[%clk 0:02:59]} 8. Bg5 {[%clk
0:02:17.6]} 8... e5 {[%clk 0:02:48.8]} 9. Qd2 {[%clk 0:02:10.1]} 9... h6 {[%clk
0:02:42.9]} 10. Bh4 {[%clk 0:02:08.4]} 10... Rd8 {[%clk 0:02:28.3]} 11. Bxd8
{[%clk 0:01:59.8]} 11... Qxd8 {[%clk 0:02:26.3]} 12. O-O-O {[%clk 0:01:55.9]}
12... Be6 {[%clk 0:02:17.6]} 13. Nxe5 {[%clk 0:01:53.3]} 13... Qc7 {[%clk
0:02:09.4]} 14. Nf3 {[%clk 0:01:34.6]} 14... Be7 {[%clk 0:02:04.7]} 15. Kb1
{[%clk 0:01:33.4]} 15... Nf6 {[%clk 0:02:00.9]} 16. Rhe1 {[%clk 0:01:32.8]}
16... O-O {[%clk 0:01:55]} 17. Nd4 {[%clk 0:01:29]} 17... Nd7 {[%clk 0:01:42.5]}
18. f4 {[%clk 0:01:25.9]} 18... Nc5 {[%clk 0:01:29.6]} 19. Nxe6 {[%clk
0:01:08.4]} 19... fxe6 {[%clk 0:01:23.1]} 20. g3 {[%clk 0:01:07.7]} 20... Rb8
{[%clk 0:01:22.2]} 21. b3 {[%clk 0:01:07.5]} 21... a5 {[%clk 0:01:00.3]} 22. Qd4
{[%clk 0:01:01.4]} 22... e5 {[%clk 0:00:47.8]} 23. fxe5 {[%clk 0:00:58.1]} 23...
dxe5 {[%clk 0:00:48.7]} 24. Qc4+ {[%clk 0:00:58.3]} 24... Kh7 {[%clk 0:00:40.7]}
25. Rf1 {[%clk 0:00:47.8]} 25... a4 {[%clk 0:00:35.7]} 26. Rf7 {[%clk
0:00:31.7]} 26... axb3 {[%clk 0:00:31.4]} 27. cxb3 {[%clk 0:00:23]} 27... Qa7
{[%clk 0:00:27.8]} 28. Rdf1 {[%clk 0:00:15.5]} 28... Qa3 {[%clk 0:00:17.1]} 29.
Rxe7 {[%clk 0:00:12.6]} 29... Nxb3 {[%clk 0:00:17.3]} 30. Rxg7+ {[%clk 0:00:08]}
30... Kh8 {[%clk 0:00:15]} 31. Rg8+ {[%clk 0:00:06.8]} 31... Rxg8 {[%clk
0:00:13.8]} 32. Qxb3 {[%clk 0:00:07]} 32... Qc5 {[%clk 0:00:10.2]} 33. Rf7
{[%clk 0:00:06.3]} 33... Qd6 {[%clk 0:00:05.5]} 34. Rb7 {[%clk 0:00:05.3]} 34...
Rf8 {[%clk 0:00:04.6]} 35. Nd1 {[%clk 0:00:04.1]} 35... Rf1 {[%clk 0:00:04.4]}
36. Rb8+ {[%clk 0:00:04.2]} 36... Kg7 {[%clk 0:00:02.8]} 37. Qg8+ {[%clk
0:00:04.6]} 37... Kf6 {[%clk 0:00:01.1]} 38. Rf8+ {[%clk 0:00:05.5]} 1-0